Cogmind - Beta 16 *** ADVENTURER MODE // 2026.01.04 @ 02:20:59 Player: Illhark Result: Self-destructed Performance ------------- Evolutions (2) 1000 Regions Visited (4) 800 Robots Destroyed (42) 210 Value Destroyed (920) 920 Prototype IDs (1) 20 Alien Tech Used (0) 0 Bonus (50) 50 TOTAL SCORE: 3000 Bonus ------- High Alert Combat Kills 50 Cogmind --------- Core Integrity 521/550 Matter 39/300 Energy 213/280 System Corruption 7% Temperature Cool (0) Movement Treading (160) Location -8/Materials Parts ------- > --- POWER (1) -------- Heavy Ion Engine > --- PROPULSION (2) --- Light Treads Light Treads > --- UTILITY (5) ------ Large Storage Unit Signal Interpreter > --- WEAPON (3) ------- (None) > --- INVENTORY (15) --- Ion Engine Light Ion Engine Machine Analyzer Assault Rifle Light Assault Rifle Light Assault Rifle Rocket Launcher Peak State ------------ > --- POWER ------------ Light Ion Engine > --- PROPULSION ------- Light Treads Light Treads > --- UTILITY ---------- Large Storage Unit Machine Analyzer Signal Interpreter > --- WEAPON ----------- Improved Grenade Launcher Improved Grenade Launcher Improved Grenade Launcher > --- INVENTORY -------- Ion Engine Machine Analyzer Assault Rifle Light Assault Rifle Light Assault Rifle Rocket Launcher [Rating: 17] Favorites ----------- Power Light Ion Engine Engine Light Ion Engine Propulsion Light Treads Treads Light Treads Leg Aluminum Leg Utility Large Storage Unit Storage Large Storage Unit Processor Signal Interpreter Weapon Improved Grenade Launcher Ballistic Gun Light Assault Rifle Launcher Improved Grenade Launcher Build | -11 -10 -10 -9 -8 ------- Run | Yrd Mat Min Mat Mat Slots Evolved 4 | . . . 2 2 Power . | . . . . . Propulsion . | . . . . . Utility 3 | . . . 2 1 Weapon 1 | . . . . 1 Parts Attached 14 | 4 1 1 5 3 Power 5 | 2 . 1 1 1 Engine 5 | 2 . 1 1 1 Core . | . . . . . Reactor . | . . . . . Propulsion 2 | 2 . . . . Treads 2 | 2 . . . . Leg . | . . . . . Wheel . | . . . . . Hover . | . . . . . Flight . | . . . . . Utility 3 | . 1 . 2 . Device . | . . . . . Storage 1 | . 1 . . . Processor 2 | . . . 2 . Hackware . | . . . . . Protection . | . . . . . Artifact . | . . . . . Weapon 4 | . . . 2 2 Energy Gun . | . . . . . Energy Cannon . | . . . . . Ballistic Gun . | . . . . . Ballistic Cannon . | . . . . . Launcher 4 | . . . 2 2 Special Weapon . | . . . . . Impact Weapon . | . . . . . Slashing Weapon . | . . . . . Piercing Weapon . | . . . . . Special Melee Weapon . | . . . . . Unidentified Prototypes 1 | . . . . 1 Parts Lost 5 | . . . . 5 Power . | . . . . . Propulsion . | . . . . . Utility 1 | . . . . 1 Weapon 4 | . . . . 4 Highest Loss Streak 5 | . . . . 5 To Critical Strikes . | . . . . . Average Backups 5 | 4 2 2 8 7 Power 1 | 1 1 1 1 1 Propulsion . | 2 . . . . Utility . | . . . 1 1 Weapon 3 | 1 1 1 5 4 Tool/Special . | . . . . . Unused Backups 6 | . 3 . . 3 Power . | . . . . . Propulsion . | . . . . . Utility 2 | . 1 . . 1 Weapon 4 | . 2 . . 2 Tool/Special . | . . . . . Average Slot Usage (%) 78 | . 85 85 73 69 Engine 12 | . 14 14 11 9 Treads 24 | . 28 28 22 18 Storage 12 | . 14 14 11 9 Processor 4 | . . . 7 15 Ballistic Gun 14 | . 28 28 2 . Launcher 10 | . . . 19 18 Peak Build Rating 17 | 6 6 6 15 17 Average Rating 9 | 6 5 6 11 13 On Entrance 7 | 6 6 6 6 15 Avg Prop Armor Cover (%) . | . . . . . Naked Turns . | . . . . . Heaviest Build 41 | 11 26 26 35 41 Greatest Support 40 | 40 40 40 40 40 Greatest Overweight (x) 1 | . . . . 1 Average Overweight (x) . | . . . . . Largest Inventory Capacity 15 | 8 15 15 15 15 Average Capacity 14 | 8 10 15 15 15 Most Carried 10 | 6 3 4 10 8 Average Carried 5 | 3 2 2 8 6 Final Capacity 15 | 8 15 15 15 15 Final Carried 8 | 2 2 3 8 7 Class Distribution -------------------- 100% | Mutant Dominant Class ---------------- Mutant | -10/Materials Mutant | -10/Mines Mutant | -9/Materials Mutant | -8/Materials Resources | -11 -10 -10 -9 -8 ----------- Run | Yrd Mat Min Mat Mat Matter Collected 725 | 193 . 149 347 36 Remotely . | . . . . . Salvage Created 624 | . . 177 400 47 Parts 68 | . . 26 39 3 Haulers Intercepted 1 | . . . . 1 Recyclers Shooed . | . . . . . Parts Field Recycled . | . . . . . Retrieved Matter . | . . . . . Parts Self-Destructed . | . . . . . Prevented . | . . . . . Parts Restored . | . . . . . Kills | -11 -10 -10 -9 -8 ------- Run | Yrd Mat Min Mat Mat Combat Hostiles Destroyed 37 | . . 12 22 3 Guns 12 | . . 12 . . AOE 25 | . . . 22 3 Classes Destroyed 8 | . . 1 6 1 Hauler 1 | . . . . 1 Recycler 2 | . . . 2 . Operator 1 | . . . 1 . Watcher 1 | . . . 1 . Swarmer 22 | . . 12 10 . Grunt 9 | . . . 7 2 Duelist 1 | . . . 1 . Sentry 5 | . . . 4 1 Best Kill Streak 9 | . . 9 9 4 Combat Bots Only 9 | . . 9 6 3 Max Kills in Single Turn 3 | . . 1 3 3 Gunslinging . | . . . . . Exploded 3 | . . . 3 2 Melee . | . . . . . Uniques/NPCs Destroyed . | . . . . . Combat | -11 -10 -10 -9 -8 -------- Run | Yrd Mat Min Mat Mat Hostile Shots Fired 110 | . . 45 51 14 Missed 41 | . . 14 24 3 Hits 69 | . . 31 27 11 Projectile 69 | . . 31 27 11 Critical Strikes 2 | . . . 1 1 Damage Taken 901 | . . 169 244 488 Core 123 | . . 57 37 29 Absorbed by Shields . | . . . . . Ignored by Resistances 201 | . . 62 78 61 Core Remaining (%) 89 | 100 . 77 90 . Volleys Fired 40 | . 1 17 17 5 Largest 3 | . 2 2 2 3 Hottest 108 | . 40 40 72 108 Shots Fired 81 | . 2 34 34 11 Gun 36 | . 2 34 . . Cannon . | . . . . . Launcher 45 | . . . 34 11 Special . | . . . . . Kinetic 36 | . 2 34 . . Thermal . | . . . . . Explosive 45 | . . . 34 11 Electromagnetic . | . . . . . Robot Hit Streak 19 | . 1 4 14 19 Robot Miss Streak 2 | . 1 2 1 . Penetration Max . | . . . . . Secondary Targets 6 | . . 6 . . Max Gunslinging Chain 1 | . . 1 . . Shots Hit Robots 57 | . 1 19 27 10 Core Hits 71 | . . 14 49 8 Critical Kills . | . . . . . Critical Parts Destroyed . | . . . . . Critical Strikes . | . . . . . Melee Attacks . | . . . . . Impact . | . . . . . Slashing . | . . . . . Piercing . | . . . . . Sneak Attacks . | . . . . . Combat Hostiles . | . . . . . Follow-up Attacks . | . . . . . Damage Inflicted 3066 | . 8 212 2244 602 Guns 220 | . 8 212 . . Cannons . | . . . . . Explosions 2839 | . . . 2237 602 Melee . | . . . . . Ramming 7 | . . . 7 . Kinetic 220 | . 8 212 . . Thermal . | . . . . . Explosive 2839 | . . . 2237 602 Electromagnetic . | . . . . . Impact . | . . . . . Slashing . | . . . . . Piercing . | . . . . . Highest Corruption 7 | . . . . 7 Average Corruption 7 | . . . . 7 Corruption Purged . | . . . . . Corruption Blocked . | . . . . . Overload Shots . | . . . . . Overflow Damage 65 | . . . 40 25 Projectiles . | . . . . . Explosions 65 | . . . 40 25 Melee . | . . . . . Knockbacks . | . . . . . Impact . | . . . . . Kinetic . | . . . . . Secondary . | . . . . . Self-Inflicted Damage 128 | . . . 44 84 Shots 8 | . . . 3 5 Rammed 2 | . . . 2 . Targets Rammed 2 | . . . 2 . Kicked . | . . . . . Crushed . | . . . . . Highest Temperature 78 | . . . 33 78 Average Temperature 13 | . . . 7 36 Received Heat Transfer 159 | . . . 87 72 Siege Activations . | . . . . . Martial Activations . | . . . . . Shielding Activations . | . . . . . Robots Disrupted . | . . . . . Combat Hostiles . | . . . . . Robots Corrupted . | . . . . . Combat Hostiles . | . . . . . Parts Fried . | . . . . . Impact Corruptions . | . . . . . Robots Melted . | . . . . . Combat Hostiles . | . . . . . Parts Melted . | . . . . . Heat Transferred . | . . . . . Parts Sabotaged . | . . . . . Parts Stolen . | . . . . . Parts Stripped . | . . . . . Power Chain Reactions . | . . . . . Alert | -11 -10 -10 -9 -8 ------- Run | Yrd Mat Min Mat Mat Maximum Alert Level 2 | . . 1 2 1 Low Security (%) 65 | 100 100 97 39 9 Level 1 17 | . . 2 23 90 Level 2 16 | . . . 36 . Level 3 . | . . . . . Level 4 . | . . . . . Level 5 . | . . . . . High Security . | . . . . . Max Security . | . . . . . Peak Influence 611 | . 7 200 611 303 Initial 212 | . . . 55 212 Average 175 | . . 70 305 237 Influence Increases 1164 | . 7 280 766 111 Destroy 0b10 Robot/C 740 | . . 240 440 60 Destroy 0b10 Robot/NC 25 | . . . 20 5 Destroy Leader 144 | . . 40 92 12 Successful Hack 7 | . 7 . . . Disable Machine 45 | . . . 45 . Destroy Structure 203 | . . . 169 34 Influence Decreases 921 | . 7 110 345 459 Entered New Map 494 | . . . 115 379 Time Decay 377 | . 7 110 230 30 Lost Part 50 | . . . . 50 Squads Dispatched 3 | . . . 3 . Investigation . | . . . . . Extermination . | . . . . . Reinforcement 2 | . . . 2 . Assault 1 | . . . 1 . Garrison . | . . . . . Intercept . | . . . . . Searches Triggered . | . . . . . Construction Impeded 1 | . . . 1 . Haulers Reinforced . | . . . . . Active Scanning Responses . | . . . . . Cargo Convoy Interrupts . | . . . . . Stealth | -11 -10 -10 -9 -8 --------- Run | Yrd Mat Min Mat Mat Distress Signals 2 | . . . 2 . Communications Jammed . | . . . . . Distress Signals . | . . . . . Times Spotted 45 | . 1 12 29 3 Peak Tracking Total 7 | . 1 6 7 3 Tactical Retreats . | . . . . . Traps | -11 -10 -10 -9 -8 ------- Run | Yrd Mat Min Mat Mat Traps Triggered 1 | . 1 . . . Indirectly . | . . . . . Trap Hack Attempts . | . . . . . Triggered . | . . . . . Disarmed . | . . . . . Reprogrammed . | . . . . . Reused . | . . . . . Traps Extracted . | . . . . . Installed . | . . . . . Triggered . | . . . . . Machines | -11 -10 -10 -9 -8 ---------- Run | Yrd Mat Min Mat Mat Machines Disabled 5 | . . . 5 . Max in Single Turn 2 | . . . 2 . Machines Repaired . | . . . . . Machines Dismantled . | . . . . . Machines Sabotaged . | . . . . . Overloaded Fab Kills . | . . . . . Hacking | -11 -10 -10 -9 -8 --------- Run | Yrd Mat Min Mat Mat Machines Accessed 5 | . 2 . 2 1 Terminals 4 | . 2 . 1 1 Fabricators . | . . . . . Repair Stations . | . . . . . Recycling Units . | . . . . . Scanalyzers 1 | . . . 1 . Garrison Access . | . . . . . Total Hacks 9 | . 4 . 2 3 Successful 5 | . 2 . 2 1 Failed 4 | . 2 . . 2 Catastrophic . | . . . . . Database Lockouts . | . . . . . Manual 5 | . 4 . 1 . Terminals 8 | . 4 . 1 3 Fabricators . | . . . . . Repair Stations . | . . . . . Recycling Units . | . . . . . Scanalyzers 1 | . . . 1 . Garrison Access . | . . . . . Terminal Hacks 1 | . . . . 1 Alert Level 1 | . . . . 1 Fabricator Hacks . | . . . . . Repair Station Hacks . | . . . . . Recycling Unit Hacks . | . . . . . Scanalyzer 1 | . . . 1 . Retrieve Study 1 | . . . 1 . Garrison Access Hacks . | . . . . . Unauthorized Hacks 3 | . 2 . 1 . Terminals 3 | . 2 . 1 . Botnet 3 | . 2 . 1 . Fabricators . | . . . . . Repair Stations . | . . . . . Recycling Units . | . . . . . Scanalyzers . | . . . . . Garrison Access . | . . . . . Data Cores Recovered . | . . . . . Used . | . . . . . Hacking Detections 2 | . . . 1 1 Full Trace Events . | . . . . . Feedback Events . | . . . . . Feedback Blocked . | . . . . . Robot Schematics Acquired . | . . . . . Robots Built . | . . . . . Authchips . | . . . . . Time . | . . . . . Total Robot Build Rating . | . . . . . Part Schematics Acquired . | . . . . . Parts Built . | . . . . . Authchips . | . . . . . Time . | . . . . . Total Part Build Rating . | . . . . . Part Studies Acquired . | . . . . . Parts Repaired . | . . . . . Time . | . . . . . Parts Recycled . | . . . . . Recycled Matter . | . . . . . Retrieved Matter . | . . . . . Retrieved Components . | . . . . . Parts Scanalyzed . | . . . . . Part Schematics Acquired . | . . . . . Parts Damaged . | . . . . . Bothacking | -11 -10 -10 -9 -8 ------------ Run | Yrd Mat Min Mat Mat Used RIF Installer . | . . . . . Robots Hacked . | . . . . . Non-combat . | . . . . . Combat . | . . . . . Robot Hacks Applied . | . . . . . Relay Couplers Released . | . . . . . Fabnet Peak Effective % . | . . . . . Robots Rewired . | . . . . . Allies Hacked . | . . . . . Hacks Repelled . | . . . . . Allies | -11 -10 -10 -9 -8 -------- Run | Yrd Mat Min Mat Mat Total Allies . | . . . . . Largest Group . | . . . . . Highest-Rated Group . | . . . . . Highest-Rated Ally . | . . . . . Total Orders . | . . . . . Ally Attacks . | . . . . . Total Damage . | . . . . . Kills . | . . . . . Allies Corrupted . | . . . . . Allies Melted . | . . . . . Intel | -11 -10 -10 -9 -8 ------- Run | Yrd Mat Min Mat Mat Active Infowar (turns) 210 | . . . 166 44 Machine Analysis 210 | . . . 166 44 Robot Analysis Total . | . . . . . Derelict Logs Recovered 1 | . . 1 . . Drone Launches . | . . . . . Drone Recoveries . | . . . . . Exploration | -11 -10 -10 -9 -8 ------------- Run | Yrd Mat Min Mat Mat Turns Passed 1012 | 10 183 289 465 65 Spaces Moved 529 | 1 110 147 244 27 Core . | . . . . . Treads 529 | 1 110 147 244 27 Legs . | . . . . . Wheels . | . . . . . Hover . | . . . . . Flight . | . . . . . Fastest Speed 160 | 160 160 160 160 160 Average Speed 160 | 160 160 160 160 171 Slowest Speed 240 | 160 160 160 160 240 Overloaded Moves . | . . . . . Propulsion Burnouts . | . . . . . Robots Hopped . | . . . . . Potential Cave-ins . | . . . . . Cave-ins Triggered 1 | . . . . 1 Exploration Rate (%) 24 | 2 31 40 42 8 Regions Visited 4 Branch Regions 1 Pre-discovered Areas . | . . . . . Known Exits Taken 1 | . . . 1 . Unknown Exits Taken 3 | 1 1 1 . . Scrap Searched . | . . . . . Spaces Dug . | . . . . . Terrain Destroyed 248 | . . . 202 46 Melee . | . . . . . Projectile . | . . . . . AOE 248 | . . . 202 46 Terrain Rammed . | . . . . . Walls Destroyed . | . . . . . Machines Disabled . | . . . . . Actions | -11 -10 -10 -9 -8 --------- Run | Yrd Mat Min Mat Mat Total 613 | 9 115 170 283 36 Wait 10 | . . 3 7 . Move 525 | . 109 146 243 27 Hop . | . . . . . Pick Up 13 | . 2 2 8 1 Fast Attach . | . . . . . Attach 5 | . 1 . 2 2 Detach . | . . . . . Swap 11 | 5 1 1 3 1 Drop 7 | 4 1 1 1 . Fire 40 | . 1 17 17 5 Melee . | . . . . . Ram . | . . . . . Kick . | . . . . . Crush 2 | . . . 2 . Escape Stasis . | . . . . . Rewire . | . . . . . Trap . | . . . . . Miscellaneous . | . . . . . Route ------- -11/Scrapyard -10/Materials -10/Mines (discovered 2 exits: *Mat / Sub) -9/Materials (discovered 3 exits: *Mat / [*Min] / [*Sto]) -8/Materials History --------- Turn | Location | Event 11 | -11/Scrapyard | Discovered new exit (range 0) 11 | -11/Scrapyard | Entered Materials 174 | -10/Materials | Discovered new exit (range 10) 194 | -10/Materials | Entered Mines 203 | -10/Mines | Received a Rocket Launcher from a helpful Derelict 230 | -10/Mines | Identified exit to Subcaves 303 | -10/Mines | Build established: Mutant 447 | -10/Mines | Destroyed 9 combat bots 471 | -10/Mines | Discovered new exit (range 5) 483 | -10/Mines | Entered Materials 483 | -9/Materials | Evolved 2 slots: Utility x2 498 | -9/Materials | Discovered new exit (range 16) 697 | -9/Materials | Discovered new exit (range 16) 883 | -9/Materials | First assault squad dispatched 923 | -9/Materials | Discovered new exit (range 16) 947 | -9/Materials | Identified exit to Materials 948 | -9/Materials | Entered another Materials area 948 | -8/Materials | Evolved 2 slots: Utility x1, Weapon x1 992 | -8/Materials | Crushed by falling debris 1013 | -8/Materials | Self-destructed Last Messages --------------- 00992_ Machine Analyzer destroyed. 00992_ System corrupted by crushing effect (+3). 00992_ Imp. Grenade Launcher destroyed. 00992_ System corrupted by crushing effect (+2). 00992_ Imp. Grenade Launcher destroyed. 00992_ System corrupted by crushing effect (+2). 00993_ The unstable cave ceiling collapses. 00997_ R-06 Scavenger collects Prototype Ballistic Gun. 01000_ R-06 Scavenger collects Prototype Engine. 01003_ Acquired Prototype Engine. 01004_ R-06 Scavenger collects Prototype Engine. 01004_ Identified Hvy. Ion Engine. 01006_ Acquired 36 matter. 01008_ R-06 Scavenger collects Med. Storage Unit. 01011_ Destroyed Com. Wheel. 01011_ Destroyed Tractor Beam. 01011_ Imp. Grenade Launcher destroyed. 01011_ Destroyed Imp. Grenade Launcher. Map ----- +----------------------------------------------------+ | ?????????????????????????????????????????????????? | | ?????????????????????????????????????????????????? | | ?????????????????????????????????????????????????? | | ?????????????????????????????????????????????????? | | ?????????????????????????????????????????????????? | | ?????????????????????????????????????????????????? | | ?????????????????????????????????????????????????? | | ?????????????????????????????????????????????????? | | ?????????????????????????????????????????????????? | | ?????????????????????????????????????????????????? | | ?????????????????????????????????????????????????? | | ?????????????????????????????????????????????????? | | ?????????????????????????????????????????????????? | | ?????????????????????????????????????????????????? | | ?????????????????????????????????????????????????? | | ?????????????????????????????????????????????????? | | ?????????T???????????######??????????????????????? | | ????????????????????## #######????????????????? | | ???????????????????### #####????????????? | | ???????????????????# ## # ##T#############? | | ???????????????????# #? | | ???????????????????# #? | | ????????????????##T# r #? | | ??????????? = # # ###########+##### | | ??????????????####### ## # | | ???????????????????# *@ ## # | | ???????????????????# # ## """ """ # | | ???????????????????# """ """ # ## """ """ # | | ???????????????????# """ """ # ## """ """ # | | ???????????????????# """ """ # ## """ """ # | | ???????????????????# # ## """ """ # | | ???????????????????# # ##?? ?? | | ???????????????????? # #????#####?? | | ????????????????????#########?#########??????????? | | | | | | | | | | | | | | | | | | | | | | | | | | | | | | | | | +----------------------------------------------------+ Best States ------------- Heat Dissipation 31 Energy Generation 14 Energy Capacity 280 Matter Stores 300 Matter Capacity 300 Sight Range 16 Terrain Scan Density 10 Resistance: KI 20 Resistance: TH 20 Resistance: EX 20 Resistance: EM 20 Resistance: I 20 Resistance: S 20 Resistance: P 20 Evasion (%) 40 Recoil Reduction 2 Offensive Hacking 10 Item Schematics ----------------- None Robot Schematics ------------------ None Fabricated ------------ Nothing Repaired ---------- Nothing Studied --------- None Alien Tech Used ----------------- None Achievements -------------- There's More Where That Came From Challenges ------------ None Game ------ Seed ConceptFlakBroadsword Manual? 0 Play Time 00:15:13 Cumulative 64.9 hours Start 2026.01.04 @ 02:07:22 End 2026.01.04 @ 02:20:59 Sessions 1 Manual Loads 0 Difficulty Adventurer Special Mode None Game No. 46 Rogue 0 Adventurer 45 Explorer 1 Win Type - Total 2 Types 2/0/0/0/0/0/0/0/0/0 Lore% 28 Gallery% 42 Achievement% 24 Wizard Run 0 Options --------- Layout 1 ASCII 0 Keyboard 0 Movement Numpad Keybinds 0 Fullscreen 1 Font 24/Smallcaps Map View 50x35 Zoom Use 0% Tactical HUD 1 Map Filters NONE Filters NONE Steam 1 RUN: edc02703-2b72-4f9d-b3f7-54442149e9e2